bitfinex-derivatives/quotes_ETHF0:USTF0_20251021
["timestamp","ask_amount","ask_price","bid_price","bid_amount"]
[1761041535112,0.00287163,3869.1,3869.0,1.3794989]
[1761041536107,0.46799163,3869.1,3869.0,1.3794989]
[1761041537408,0.00287163,3869.1,3869.0,1.3794989]
[1761041538007,0.46799163,3869.1,3869.0,1.3794989]
[1761041539408,0.69619163,3869.1,3869.0,1.3794989]
[1761041540811,1.26489163,3869.1,3869.0,1.3794989]
[1761041541309,1.26489163,3869.1,3869.0,2.07679136]
[1761041541508,1.26489163,3869.1,3869.0,1.3794989]
[1761041541712,1.26489163,3869.1,3869.0,2.07679136]
[1761041545010,0.45657163,3869.1,3869.0,2.07679136]
[1761041545213,0.00287163,3869.1,3869.0,1.3794989]
[1761041547516,0.00287163,3869.1,3869.0,2.30944318]
[1761041548302,0.00287163,3869.1,3869.0,1.3794989]
[1761041551323,0.00287163,3869.1,3869.0,2.77441533]
[1761041551515,0.00287163,3869.1,3869.0,1.3794989]
[1761041552214,0.00287163,3869.1,3869.0,2.77441533]
[1761041552616,0.46799163,3869.1,3869.0,2.77441533]
[1761041552805,0.00287163,3869.1,3869.0,2.77441533]
[1761041556013,0.00287163,3869.1,3869.0,1.3794989]
[1761041557920,1.39355695,3870.0,3869.9,1.22673]
[1761041557921,0.2317,3870.0,3869.9,1.22673]
[1761041558121,0.79229117,3870.0,3869.9,1.22673]
[1761041558324,1.03142,3870.0,3869.9,1.22673]
[1761041558919,1.25007633,3870.0,3869.9,1.22673]
[1761041562221,0.00295633,3870.0,3869.9,1.92409603]
[1761041562628,0.00295633,3870.0,3869.9,1.22673]
[1761041563221,0.00295633,3870.0,3869.9,1.92322741]
[1761041566628,0.46492,3870.8,3870.7,0.7617]
[1761041566832,0.69662,3870.8,3870.7,1.22663]
[1761041567431,1.03132,3870.8,3870.7,1.22663]
[1761041567631,1.03452325,3870.8,3870.7,1.22663]
[1761041568331,0.00320325,3870.8,3870.7,1.22663]
[1761041569530,1.25022325,3870.8,3870.7,0.7617]
[1761041569835,0.00320325,3870.8,3870.7,1.22663]
[1761041571433,0.00320325,3870.8,3870.7,6.92270333]
[1761041571636,0.3347,3871.8,3871.7,0.7617]
[1761041571637,0.5664,3871.8,3871.7,0.7617]
[1761041571824,0.2317,3871.8,3871.7,0.7617]
[1761041572134,0.6965,3871.8,3871.7,0.7617]
[1761041572527,0.69866248,3871.8,3871.7,0.7617]
[1761041572935,0.46696248,3871.8,3871.7,1.22651]
[1761041573630,0.00216248,3871.8,3871.7,1.22651]
[1761041574432,1.2468,3872.6,3872.5,0.5339]
[1761041575435,1.24953872,3872.6,3872.5,0.53588668]
[1761041576939,0.91483872,3872.6,3872.5,0.89678668]
[1761041578930,1.23343872,3872.6,3872.5,0.76368668]
[1761041579334,1.23343872,3872.6,3872.5,0.89248668]
[1761041580446,0.91483872,3872.6,3872.5,0.89248668]
[1761041580643,0.69913872,3872.6,3872.5,0.89248668]
[1761041581548,6.23413872,3872.6,3872.5,0.00198668]
[1761041585043,1.23413872,3872.6,3872.5,0.75508668]
[1761041585245,0.46743872,3872.6,3872.5,0.88388668]
[1761041585748,1.22953872,3872.6,3872.5,0.88388668]
[1761041586248,0.69453872,3872.6,3872.5,0.88388668]
[1761041586448,0.46743872,3872.6,3872.5,0.88388668]
[1761041588451,1.22953872,3872.6,3872.5,0.00198668]
[1761041588851,1.22953872,3872.6,3872.5,0.54438668]
[1761041589254,1.22953872,3872.6,3872.5,0.75508668]
[1761041589449,1.22953872,3872.6,3872.5,0.88388668]
[1761041589954,1.22953872,3872.6,3872.5,0.75508668]
[1761041590852,1.22953872,3872.6,3872.5,0.54438668]
[1761041591755,1.22953872,3872.6,3872.5,0.00198668]
[1761041596653,1.22953872,3872.6,3871.3,0.92603305]
[1761041596654,1.03684,3871.5,3871.4,0.69131008]
[1761041596959,1.01068,3870.3,3870.2,0.4389]
[1761041597165,0.7621,3870.6,3870.2,0.90389]
[1761041597354,0.692,3871.0,3870.9,0.4389]
[1761041597550,0.2271,3871.0,3870.9,0.90381]
[1761041597856,0.46486,3871.3,3871.2,0.4501]
[1761041598458,0.5509,3871.8,3871.7,0.4501]
[1761041598645,1.2323,3871.8,3871.7,0.7885]
[1761041599654,0.5509,3871.8,3871.7,0.7885]
[1761041600160,1.0157,3871.8,3871.7,0.7885]
[1761041601852,1.2323,3871.8,3871.7,0.4501]
[1761041602063,1.23235,3871.4,3871.3,0.2207]
[1761041603947,1.23235,3871.4,3871.3,0.5591]
[1761041605361,1.23235,3871.4,3871.3,0.7885]
[1761041608554,1.22439,3871.9,3871.8,0.7671]
[1761041609252,0.78591,3871.7,3871.6,0.542]
[1761041609451,1.22441,3871.7,3871.6,0.2114]
[1761041610375,1.22446,3871.3,3871.2,0.69131008]
[1761041610555,0.46487,3871.2,3871.1,1.15619008]
[1761041610765,1.22447,3871.2,3871.1,1.92329008]
[1761041610959,0.7596,3871.2,3871.1,1.92329008]
[1761041611166,0.46483,3871.6,3871.5,0.3306]
[1761041611465,0.3389,3872.0,3871.9,0.2114]
[1761041611764,0.90332,3871.7,3871.6,0.7671]
[1761041612163,1.22442,3871.7,3871.6,0.7671]
[1761041612556,1.22442,3871.7,3871.6,1.23192]
[1761041618270,0.99632,3871.7,3871.6,1.23192]
[1761041619675,0.99632,3871.7,3871.6,0.7671]
[1761041619871,1.22442,3871.7,3871.6,0.7671]
[1761041620468,1.22442,3871.7,3871.6,1.23192]
[1761041622267,1.22442,3871.7,3871.6,1.926977]
[1761041625176,1.22442,3871.7,3871.6,1.462157]
[1761041626575,1.22442,3871.7,3871.6,1.926967]
[1761041627078,1.22442,3871.7,3871.6,1.23191]
[1761041630577,1.22442,3871.7,3871.6,0.7671]
[1761041631585,1.22442,3871.7,3871.6,1.23191]
[1761041634476,1.22442,3871.7,3871.6,1.92870107]
[1761041635985,0.99632,3871.7,3871.6,1.92870107]
[1761041640184,0.99632,3871.7,3871.6,1.23191]
[1761041641479,1.21761,3871.6,3871.5,0.92603305]
[1761041641786,1.21761,3871.6,3871.1,0.92603305]
[1761041641787,0.46486,3871.2,3871.1,0.92603305]
[1761041641982,0.79347,3871.1,3871.0,10.01871316]
[1761041642189,0.67667,3871.1,3871.0,9.92459]
[1761041642479,1.00527,3871.1,3871.0,11.07922305]
[1761041642681,1.00527,3871.1,3871.0,11.41312305]
[1761041643889,1.21767,3871.1,3871.0,11.74083667]
[1761041644089,1.21767,3871.1,3871.0,11.27594667]
[1761041644685,1.21767,3871.1,3871.0,11.74083667]
[1761041645291,1.21767,3871.1,3871.0,10.34869]
[1761041647086,1.21767,3871.1,3871.0,0.7818]
[1761041647293,1.35389,3871.0,3870.9,0.93198976]
[1761041647493,1.35389,3871.0,3870.9,9.10711245]
[1761041647897,1.35389,3871.0,3870.9,9.32641245]
[1761041648090,1.35389,3871.0,3870.9,0.22241245]
[1761041648392,1.35389,3871.0,3870.9,9.32641245]
[1761041648591,1.35389,3871.0,3870.9,0.6996359]
[1761041648793,6.35389,3871.0,3870.9,0.00311245]
[1761041649895,1.21778,3870.2,3870.1,0.91582345]
[1761041650088,1.21778,3870.2,3870.1,1.94331345]
[1761041650089,0.5404,3870.2,3870.1,1.94331345]
[1761041650399,0.46495,3870.5,3870.3,0.7818]
[1761041650590,0.46495,3870.5,3870.3,1.94268296]
[1761041650888,1.00535,3870.5,3870.4,0.7818]
[1761041651399,1.35395,3870.5,3870.4,0.4479]
[1761041651590,1.21776,3870.4,3870.3,0.2213228]
[1761041652594,1.21776,3870.4,3870.3,0.7838228]
[1761041654897,1.21776,3870.4,3870.3,0.4499228]
[1761041655199,1.21776,3870.4,3870.3,0.0020228]
[1761041659400,1.22945,3869.6,3869.5,9.80991296]
[1761041659691,1.22945,3869.6,3869.5,10.02731296]
[1761041659899,1.22945,3869.6,3869.5,9.3314]
[1761041660193,1.22945,3869.6,3869.5,0.2174]
[1761041660398,1.23182741,3869.6,3869.5,0.75502826]
[1761041660798,0.54927741,3869.6,3869.5,1.22009826]
[1761041660999,0.54927741,3869.6,3869.5,1.35809826]
[1761041662200,1.01432741,3869.6,3869.5,1.35809826]
[1761041665503,0.54927741,3869.6,3869.5,1.35809826]
[1761041666604,1.01432741,3869.6,3869.5,1.35809826]
[1761041667199,0.46742741,3869.6,3869.5,1.35809826]
[1761041667700,1.01432741,3869.6,3869.5,1.22009826]
[1761041668198,1.23892741,3869.6,3869.5,1.22009826]
[1761041668899,1.23892741,3869.6,3869.5,1.00829826]
[1761041669100,1.23892741,3869.6,3869.5,0.00272826]
[1761041669405,1.23892741,3869.6,3869.5,0.67799826]
[1761041669592,1.23892741,3869.6,3869.5,1.00139826]
[1761041670106,1.23892741,3869.6,3869.5,1.22889826]
[1761041670804,3.24925752,3872.2,3871.7,0.3234]
[1761041671009,0.3559,3872.5,3872.1,0.3234]
[1761041671199,0.91834,3872.3,3872.2,0.7611]
[1761041671504,0.5805,3872.0,3871.9,0.90611296]
[1761041671704,0.4648,3871.7,3871.5,0.69591296]
[1761041671913,1.04533,3871.5,3871.3,0.69591296]
[1761041672293,1.04533,3871.5,3871.2,0.69591296]
[1761041672294,0.91845,3871.3,3871.2,0.69591296]
[1761041672804,1.24175,3871.3,3871.2,0.69591296]
[1761041673104,1.24175,3871.3,3871.2,0.90611296]
[1761041673409,1.24175,3871.3,3871.2,1.22951296]
[1761041673606,1.24175,3871.3,3871.2,1.45701296]
[1761041674309,1.24175,3871.3,3871.2,0.7611]
[1761041674511,0.7769,3871.3,3871.2,0.7611]
[1761041676210,0.91845,3871.3,3871.1,0.46487]
[1761041676412,0.7769,3871.1,3871.0,0.5336]
[1761041677110,0.7769,3871.1,3871.0,1.82077731]
[1761041677111,0.5523,3871.1,3871.0,1.82077731]
[1761041679218,0.5523,3871.1,3871.0,0.8919]
[1761041679607,0.5523,3871.1,3871.0,1.35679]
[1761041682318,0.7769,3871.1,3871.0,1.35679]
[1761041682908,0.7769,3871.1,3871.0,1.22599]
[1761041687920,0.5523,3871.1,3871.0,2.28566731]
[1761041688216,0.5523,3871.1,3871.0,1.35679]
[1761041689017,0.7769,3871.1,3871.0,1.22599]
[1761041693322,0.7769,3871.1,3871.0,2.15486731]
[1761041695229,0.7769,3871.1,3871.0,1.22599]
[1761041698322,0.7769,3871.1,3871.0,1.86987442]
[1761041702127,1.24177,3871.1,3871.0,0.64388442]
[1761041702334,0.4264,3870.7,3870.5,1.85982454]
[1761041702534,0.4264,3870.3,3870.2,2.32480454]
[1761041702721,1.23157,3870.3,3870.2,0.5654]
[1761041703325,0.7666,3870.3,3870.2,1.25558]
[1761041703928,1.23157,3870.3,3870.2,1.25558]
[1761041706432,1.29974,3871.0,3870.5,0.46494]
[1761041706630,0.7666,3870.6,3870.5,2.18353538]
[1761041707535,1.23154,3870.6,3870.5,2.18353538]
[1761041707738,1.23154,3870.6,3870.5,1.71859538]
[1761041707938,1.23154,3870.6,3870.5,2.18354538]
[1761041709230,1.23154,3870.6,3870.5,0.92799538]
[1761041710135,1.36905,3870.5,3870.4,0.92799538]
[1761041710435,1.36905,3870.5,3870.4,1.95835538]
[1761041711026,1.36905,3870.5,3870.4,2.18355538]
[1761041712229,0.553,3870.8,3870.7,0.80372]
[1761041712433,0.1329,3871.4,3871.3,0.80365]
[1761041712732,1.01784,3871.4,3871.3,1.25545]
[1761041712927,0.553,3871.4,3871.3,1.25545]
[1761041713138,0.7666,3871.7,3871.6,1.25541]
[1761041713324,0.553,3871.9,3871.8,1.25539]
[1761041713637,1.23138,3871.9,3871.8,1.25539]
[1761041713838,1.23138,3871.9,3871.8,0.7906]
[1761041715833,0.7666,3871.9,3871.8,1.25539]
[1761041716029,0.2128,3871.9,3871.8,1.25539]
[1761041716427,0.00286507,3872.0,3871.9,1.25538]
[1761041716627,0.00286507,3872.0,3871.9,2.18247041]
[1761041717036,0.00286507,3872.0,3871.9,1.25538]
[1761041717539,0.76946507,3872.0,3871.9,1.25538]
[1761041717736,0.55496507,3872.0,3871.9,0.92636684]
[1761041717935,1.2242,3871.7,3871.6,0.92636684]
[1761041718137,1.34992,3871.5,3871.4,1.14226684]
[1761041718339,0.7594,3871.5,3871.4,1.21614]
[1761041718533,0.5389,3871.5,3871.4,1.21614]
[1761041718840,0.5389,3871.5,3871.4,2.14250684]
[1761041719342,1.34992,3871.5,3871.4,0.2159]
[1761041720032,1.34992,3871.5,3871.4,0.68074]
[1761041720232,0.3234,3871.7,3871.6,0.7513]
[1761041720432,1.00369,3871.8,3871.7,1.2161]
[1761041720640,1.00369,3871.8,3871.7,1.9108602]
[1761041721140,1.22419,3871.8,3871.7,0.6947602]
[1761041721334,1.2242,3871.7,3871.6,0.6947602]
[1761041722241,1.2242,3871.7,3871.6,0.9106602]
[1761041723941,1.2242,3871.7,3871.6,0.2159]
[1761041725040,1.00371,3871.6,3871.5,1.1595802]
[1761041725248,1.22421,3871.6,3871.5,1.1595802]
[1761041725548,1.22421,3871.6,3871.5,1.3754802]
[1761041725750,1.22421,3871.6,3871.5,1.9108802]
[1761041726644,0.4648,3871.8,3871.7,1.2161]
[1761041726850,1.0037,3871.8,3871.7,1.2161]
[1761041728040,1.2242,3871.8,3871.7,1.2161]
[1761041728341,1.2242,3871.8,3871.7,0.7513]
[1761041729050,1.2242,3871.8,3871.5,1.15942306]
[1761041729051,0.46481,3871.6,3871.5,1.15942306]
[1761041729251,1.13722,3871.5,3871.4,1.38464306]
[1761041729450,1.36042,3871.5,3871.4,1.71874306]
[1761041729645,1.36042,3871.5,3871.4,1.94564306]
[1761041730951,1.23042,3871.5,3871.4,1.48080306]
[1761041731151,1.36042,3871.5,3871.4,1.94564306]
[1761041732051,1.36042,3871.5,3871.4,1.48080306]
[1761041732255,1.36042,3871.5,3871.4,0.91980306]
[1761041732448,1.36042,3871.5,3871.4,1.38464306]
[1761041732752,1.36042,3871.5,3871.4,1.71874306]
[1761041733555,1.36042,3871.5,3871.4,1.94564306]
[1761041733745,1.23042,3871.5,3871.4,1.94564306]
[1761041733947,1.23042,3871.5,3871.4,1.25104]
[1761041736049,0.7656,3871.5,3871.4,1.25104]
[1761041736444,0.7656,3871.5,3871.4,2.17740684]
[1761041736650,1.0072,3871.8,3871.7,0.7989]
[1761041736849,1.0072,3871.8,3871.7,1.251]
[1761041737151,0.00286507,3872.0,3871.9,1.25098]
[1761041737756,0.00286507,3872.0,3871.9,2.17734684]
[1761041739054,0.00286507,3872.0,3871.9,1.25098]
[1761041741857,0.00286507,3872.0,3871.9,6.25098]
[1761041743151,0.00286507,3872.0,3871.9,1.25098]
[1761041743553,0.00286507,3872.0,3871.9,6.25098]
[1761041744856,0.00286507,3872.0,3871.9,1.25098]
[1761041749462,0.1329,3872.2,3871.7,1.85982454]
[1761041749463,0.1329,3872.2,3872.1,1.25095]
[1761041749765,0.1329,3872.2,3872.1,10.40695]
[1761041750169,0.1329,3872.2,3872.1,11.79760892]
[1761041750361,0.135098,3872.2,3872.1,11.79760892]
[1761041754775,0.022,3872.8,3872.7,1.25088]
[1761041754966,0.5644,3872.8,3872.7,2.17763126]
[1761041755265,1.25227,3872.8,3872.7,9.3802]
[1761041755467,1.25227,3872.8,3872.7,10.07522378]
[1761041755969,1.25485412,3872.8,3872.7,10.41177969]
[1761041758568,1.25485412,3872.8,3872.7,10.87645969]
[1761041758865,1.25485412,3872.8,3872.7,11.09055969]
[1761041760571,1.25485412,3872.8,3872.7,10.39553591]
[1761041760971,1.25485412,3872.8,3872.7,11.09054089]
[1761041761173,1.25485412,3872.8,3872.7,10.39553591]
[1761041761967,1.25485412,3872.8,3872.7,9.93085591]
[1761041762163,1.25485412,3872.8,3872.7,9.85253156]
[1761041762365,1.25485412,3872.8,3872.7,10.41573156]
[1761041762874,1.25485412,3872.8,3872.7,1.26073156]
[1761041763264,1.25485412,3872.8,3872.7,0.77975591]
[1761041763464,1.25485412,3872.8,3872.7,1.24443591]
[1761041763773,1.25485412,3872.8,3872.7,2.17118717]
[1761041764072,1.25485412,3872.8,3872.7,1.70650717]
[1761041764568,0.02458412,3872.8,3872.7,2.17118717]
[1761041765074,0.02458412,3872.8,3872.7,1.24443591]
[1761041766171,0.02458412,3872.8,3872.7,2.6345628]
[1761041767073,1.26765412,3872.8,3872.7,9.92575591]
[1761041767272,1.26765412,3872.8,3872.7,10.39043591]
[1761041767474,1.26765412,3872.8,3872.7,0.77975591]
[1761041767676,1.26765412,3872.8,3872.7,9.36795591]
[1761041767868,1.26765412,3872.8,3872.7,10.29594935]
[1761041768381,1.26765412,3872.8,3872.7,10.63764935]
[1761041768977,1.26765412,3872.8,3872.7,10.85174935]
[1761041770980,1.26765412,3872.8,3872.7,1.70774935]
[1761041771173,1.26765412,3872.8,3872.7,0.77975591]
[1761041771373,1.26765412,3872.8,3872.7,1.70817256]
[1761041775282,1.26765412,3872.8,3872.7,0.77975591]
[1761041780885,1.26765412,3872.8,3872.7,1.24443591]
[1761041781185,0.02458412,3872.8,3872.7,1.24443591]
[1761041783876,0.02458412,3872.8,3872.7,3.10426045]
[1761041784081,0.46455,3873.9,3873.7,0.88856]
[1761041784279,0.46455,3873.9,3873.8,2.14373543]
[1761041784680,0.46455,3873.9,3873.8,1.21585]
[1761041784984,0.4670131,3873.9,3873.8,1.21585]
[1761041785280,0.4670131,3873.9,3873.8,2.14317109]
[1761041785777,0.0024631,3873.9,3873.8,2.14317109]
[1761041785971,0.0024631,3873.9,3873.8,2.34524647]
[1761041786176,0.0024631,3873.9,3873.8,1.41792538]
[1761041786780,0.2248631,3873.9,3873.8,0.7513]
[1761041787079,0.7747631,3873.9,3873.8,1.44653677]
[1761041787279,0.7747631,3873.9,3873.8,1.44633492]
[1761041788484,0.5471631,3873.9,3873.8,1.44633492]
[1761041788686,0.0024631,3873.9,3873.8,0.7513]
[1761041789782,0.5779631,3873.9,3873.8,0.7513]
[1761041790785,0.2305631,3873.9,3873.8,0.7513]
[1761041791491,0.5779631,3873.9,3873.8,1.21584]
[1761041791689,1.0424931,3873.9,3873.8,1.21584]
[1761041792186,1.0424931,3873.9,3873.8,1.91018373]
[1761041792583,1.2553931,3873.9,3873.8,1.44564373]
[1761041794182,1.2553931,3873.9,3873.8,0.7513]
[1761041794584,1.2553931,3873.9,3873.8,1.44564373]
[1761041795090,1.2553931,3873.9,3873.8,0.7513]
[1761041796390,1.2553931,3873.9,3873.8,1.21584]
[1761041798193,1.2553931,3873.9,3873.8,0.7513]
[1761041798892,1.2553931,3873.9,3873.8,1.21584]
[1761041799796,1.2553931,3873.9,3873.8,1.91018373]
[1761041799797,0.0024631,3873.9,3873.8,1.91018373]
[1761041800292,0.0024631,3873.9,3873.8,1.21584]
[1761041800891,0.4669931,3873.9,3873.8,1.21584]
[1761041802498,0.0024631,3873.9,3873.8,1.21584]
[1761041802799,0.0024631,3873.9,3873.8,2.14316109]
[1761041803588,0.4669931,3873.9,3873.8,2.14316109]
[1761041805597,1.0424931,3873.9,3873.8,2.14316109]
[1761041805792,0.0024631,3873.9,3873.8,2.14316109]
[1761041806589,0.4669931,3873.9,3873.8,2.14316109]
[1761041807396,0.4669931,3873.9,3873.8,1.21584]
[1761041807695,0.8143931,3873.9,3873.8,1.67756842]
[1761041808103,0.8143931,3873.9,3873.8,2.14210842]
[1761041809199,0.8143931,3873.9,3873.8,1.21584]
[1761041810185,0.8143931,3873.9,3873.6,1.39182815]
[1761041810186,1.25296,3873.7,3873.6,0.2254]
[1761041810395,1.25296,3873.7,3873.6,0.5711]
[1761041810590,1.25296,3873.7,3873.6,1.49018466]
[1761041811298,1.25296,3873.7,3873.6,0.7946]
[1761041811995,0.5755,3873.8,3873.7,0.5711]
[1761041812297,1.04004,3873.8,3873.7,1.25916]
[1761041812485,0.0024631,3873.9,3873.7,1.25916]
[1761041812486,0.4670031,3873.9,3873.8,0.46454]
[1761041812690,0.4670031,3873.9,3873.8,2.65122818]
[1761041813396,0.4670031,3873.9,3873.8,1.25914]
[1761041815000,0.0024631,3873.9,3873.8,1.25914]
[1761041815702,0.0024631,3873.9,3873.8,3.11491086]
[1761041816598,0.0024631,3873.9,3873.8,1.25914]
[1761041818203,0.0024631,3873.9,3873.8,3.11464208]
[1761041818403,1.29843,3875.0,3873.8,3.11464208]
[1761041818404,0.3343,3875.2,3873.9,1.50692]
[1761041818591,1.02994,3874.7,3874.6,1.37884866]
[1761041819100,1.24994,3874.7,3874.6,1.72444866]
[1761041819599,1.2526422,3874.7,3874.6,1.72444866]
[1761041820594,1.2526422,3874.7,3874.6,0.2212]
[1761041821298,1.2526422,3874.7,3874.6,0.91669115]
[1761041821499,1.2526422,3874.7,3874.4,1.27334866]
[1761041821500,0.46445,3874.6,3874.5,0.69549115]
[1761041821798,1.24995,3874.6,3874.5,0.69549115]
[1761041821998,0.589,3874.0,3873.7,2.31937166]
[1761041822309,0.46454,3873.8,3873.7,0.7967]
[1761041822603,1.25004,3873.8,3873.7,0.2212]
[1761041822796,1.25004,3873.8,3873.7,0.92748965]
[1761041823400,0.1378,3874.0,3873.4,10.71330954]
[1761041823401,1.25006,3873.7,3873.6,0.92748965]
[1761041823899,6.25006,3873.7,3873.6,0.92748965]
[1761041824096,6.25006,3873.7,3873.3,0.92748965]
[1761041824097,0.7855,3873.4,3873.3,0.92748965]
[1761041825299,0.7855,3873.3,3873.2,0.92748965]
[1761041825502,0.7855,3873.3,3872.7,0.00245591]
[1761041825503,1.25016,3872.8,3872.7,0.00245591]
[1761041826900,6.25016,3872.8,3872.7,0.00245591]
[1761041827099,0.79901,3872.4,3872.3,0.5668]
[1761041827298,1.03021,3872.4,3872.3,0.7967]
[1761041827803,1.25021,3872.4,3872.3,0.7967]
[1761041828004,1.25021,3872.4,3872.3,0.79863567]
[1761041837517,0.46471,3872.4,3872.3,0.79863567]
[1761041837717,0.7643,3872.8,3872.7,0.7645]
[1761041838014,1.22896,3872.8,3872.7,0.7645]
[1761041840320,0.7643,3872.8,3872.7,0.7645]
[1761041841418,0.46465,3872.9,3872.8,1.22916]
[1761041841720,1.01745,3872.9,3872.8,1.22916]
[1761041843423,1.22895,3872.9,3872.8,0.7645]
[1761041845019,1.58976,3872.9,3872.5,0.3401]
[1761041845223,0.4281,3872.7,3872.6,0.5494]
[1761041845519,0.7643,3872.7,3872.6,0.5494]
[1761041846018,0.5617,3872.5,3872.4,1.01411]
[1761041846224,0.8979,3872.5,3872.4,1.01411]
[1761041846425,0.8979,3872.5,3872.4,1.22921]
[1761041846922,1.36261,3872.5,3872.4,0.7645]
[1761041848023,1.36261,3872.5,3872.4,0.2093]
[1761041848224,0.46471,3872.4,3872.3,0.00193567]
[1761041848421,1.22251,3872.4,3872.3,1.24065567]
[1761041848617,1.22251,3872.4,3872.3,0.77593567]
[1761041849326,1.22251,3872.4,3872.3,0.22713567]
[1761041849918,1.22251,3872.4,3872.3,0.54593567]
[1761041850319,1.22251,3872.4,3872.3,0.22713567]
[1761041851619,1.22251,3872.4,3872.3,0.54593567]
[1761041852026,1.22251,3872.4,3872.3,0.22713567]
[1761041854528,1.22251,3872.4,3872.3,0.00193567]
[1761041860420,1.22251,3872.4,3872.3,0.93055127]
[1761041860828,1.22251,3872.4,3872.3,1.47455127]
[1761041861522,1.22251,3872.4,3872.3,1.15575127]
[1761041863626,1.22251,3872.4,3872.3,1.47455127]
[1761041863828,1.22251,3872.4,3872.3,1.70455127]
[1761041868926,1.22251,3872.4,3872.3,2.16927127]
[1761041869138,1.22251,3872.4,3872.3,1.24065567]
[1761041872344,1.00541,3872.4,3872.3,1.24065567]
[1761041874239,1.00541,3872.4,3872.3,2.63227867]
[1761041876042,1.00541,3872.4,3872.3,2.16755867]
[1761041876246,1.22251,3872.4,3872.3,2.16755867]
[1761041880542,1.22251,3872.4,3872.3,2.63227867]
[1761041880739,0.46471,3872.4,3872.3,2.63227867]
[1761041881934,0.80161,3872.4,3872.3,2.63227867]
[1761041882543,0.85944024,3873.3,3873.0,0.80814]
[1761041882745,0.3369,3873.5,3873.4,0.3285]
[1761041883036,0.5465,3873.7,3873.6,1.23697]
[1761041883242,0.5465,3873.7,3873.5,0.1304]
[1761041883243,0.46454,3873.9,3873.8,0.7724]
[1761041883441,0.3369,3874.1,3873.9,0.7724]
[1761041883442,0.3369,3874.0,3873.9,0.7724]
[1761041883640,0.5465,3874.0,3873.9,0.7724]
[1761041884142,0.5465,3874.0,3873.9,1.46763087]
[1761041884542,0.5465,3874.0,3873.7,10.04576873]
[1761041884543,0.3369,3873.8,3873.7,9.81323087]
[1761041884742,0.763,3873.8,3873.7,9.118]
[1761041884939,0.763,3873.6,3873.5,0.69523087]
[1761041885641,1.36638,3873.5,3873.4,0.69523087]
[1761041887145,0.763,3873.4,3873.3,0.69523087]
[1761041887847,1.22759,3873.4,3873.3,0.69523087]
[1761041888145,0.4646,3873.3,3873.2,0.69523087]
[1761041888446,0.4646,3873.3,3873.0,1.25626873]
[1761041888447,0.46463,3873.1,3873.0,1.37166873]
[1761041888840,1.22763,3873.1,3873.0,1.37166873]
[1761041889042,1.22763,3873.1,3873.0,1.70016873]
[1761041889250,0.5465,3873.1,3873.0,2.29520873]
[1761041889548,1.22763,3873.1,3873.0,2.16311948]
[1761041890439,1.22763,3873.1,3873.0,1.69847948]
[1761041890636,1.22763,3873.1,3873.0,1.46693696]
[1761041891040,0.46465,3872.9,3872.8,0.69453696]
[1761041891248,0.46468,3872.7,3872.6,9.08063696]
[1761041891450,1.22768,3872.7,3872.6,9.40913696]
[1761041891843,1.22768,3872.7,3872.6,9.63993696]
[1761041892251,1.22768,3872.7,3872.6,9.08063696]
[1761041892955,1.22768,3872.7,3872.6,9.40913696]
[1761041894353,1.22768,3872.7,3872.6,0.69453696]
[1761041894655,1.3665,3872.5,3872.4,9.117]
[1761041894848,1.22771,3872.4,3872.3,0.00193567]
[1761041895445,6.22771,3872.4,3872.3,0.00193567]
[1761041896958,0.46481,3871.6,3871.5,0.69453696]
[1761041897156,1.36662,3871.5,3871.4,0.69453696]
[1761041897854,1.36662,3871.5,3871.4,0.90763696]
[1761041898056,1.36974429,3871.5,3871.4,0.90975139]
[1761041898759,1.01904429,3871.5,3871.4,1.47365139]
[1761041899160,1.01904429,3871.5,3871.4,0.77911443]
[1761041899161,1.37344429,3871.5,3871.4,0.77911443]
[1761041901656,1.37344429,3871.5,3871.4,0.21521443]
[1761041901861,1.37344429,3871.5,3871.4,0.00211443]
[1761041902165,1.37344429,3871.5,3871.4,0.54551443]
[1761041902866,1.37344429,3871.5,3871.4,0.77721443]
[1761041904165,0.80484429,3871.5,3871.4,0.77721443]
[1761041904368,1.01904429,3871.5,3871.4,0.77721443]
[1761041904567,1.37344429,3871.5,3871.4,0.77721443]
[1761041907666,1.37344429,3871.5,3871.4,0.00211443]
[1761041907967,1.37344429,3871.5,3870.0,0.4701]
[1761041907968,0.46499,3870.1,3870.0,0.4701]
[1761041908161,0.46499,3870.1,3870.0,0.1298]
[1761041908364,0.46504,3869.6,3869.5,0.4701]
[1761041908867,5.46504,3869.6,3869.5,0.13286035]
[1761041911169,5.46504,3869.6,3869.5,0.47316035]
[1761041911367,0.46504,3869.6,3869.5,0.47316035]
[1761041911562,0.46504,3869.6,3869.5,0.69936035]
[1761041912664,0.46511,3869.1,3869.0,0.4701]
[1761041912870,0.46516,3868.7,3868.6,0.3403]
[1761041913676,0.46822697,3868.7,3868.6,0.34324617]
[1761041916273,0.46822697,3868.7,3868.6,0.56944617]
[1761041919477,0.46822697,3868.7,3868.6,0.78724617]
[1761041923493,0.00306697,3868.7,3868.6,0.78724617]
[1761041923682,0.46822697,3868.7,3868.6,0.78724617]
[1761041926187,0.46822697,3868.7,3868.6,1.25241617]
[1761041927492,0.00306697,3868.7,3868.6,1.25241617]
[1761041928094,0.00306697,3868.7,3868.6,6.25241617]
[1761041930194,0.00306697,3868.7,3868.6,0.78724617]
[1761041930195,0.46822697,3868.7,3868.6,0.78724617]
[1761041931900,0.46821697,3868.7,3868.6,0.78724617]
[1761041937100,0.00306697,3868.7,3868.6,0.78724617]
[1761041937406,0.00306697,3868.7,3868.6,1.25241617]
[1761041937601,0.46821697,3868.7,3868.6,1.25241617]
[1761041940606,0.46821697,3868.7,3868.6,0.78724617]
[1761041941998,0.46821697,3868.7,3868.6,0.56944617]
[1761041942396,0.46821697,3868.7,3868.6,0.79674617]
[1761041943502,0.46821697,3868.7,3868.6,0.34324617]
[1761041944802,0.46821697,3868.7,3868.6,0.56394617]
[1761041945202,0.46821697,3868.7,3868.6,0.79124617]
[1761041948305,0.46821697,3868.7,3868.6,0.34324617]
[1761041952410,1.59774982,3868.7,3868.6,0.34324617]
[1761041955619,1.59774982,3868.7,3868.6,0.56394617]
[1761041955915,1.59774982,3868.7,3868.6,0.79124617]
[1761041956218,0.46821697,3868.7,3868.6,0.79124617]
[1761041956419,1.59769593,3868.7,3868.6,0.79124617]